Cogmind - Beta 16 @@@ ROGUE MODE // 2026.01.16 @ 17:48:01 Player: tritri Result: Self-destructed Performance ------------- Evolutions (1) 500 Regions Visited (3) 600 Robots Destroyed (24) 120 Value Destroyed (495) 495 Prototype IDs (2) 40 Alien Tech Used (0) 0 Bonus (0) 0 TOTAL SCORE: 1755 Bonus ------- None Cogmind --------- Core Integrity 263/400 Matter 275/300 Energy 100/100 System Corruption 0% Temperature Cool (0) Movement Core (50) Location -9/Materials Parts ------- > --- POWER (1) -------- (None) > --- PROPULSION (3) --- (None) > --- UTILITY (3) ------ Improved Terrain Scan Processor Improved Terrain Scan Processor > --- WEAPON (2) ------- (None) > --- INVENTORY (5) ---- Small Storage Unit Large Storage Unit Grenade Launcher Peak State ------------ > --- POWER ------------ Ion Engine > --- PROPULSION ------- Flight Unit Flight Unit > --- UTILITY ---------- Improved Terrain Scan Processor Improved Terrain Scan Processor > --- WEAPON ----------- Shock Rifle > --- INVENTORY -------- Small Storage Unit Large Storage Unit Grenade Launcher Grenade Launcher [Rating: 12] Favorites ----------- Power Ion Engine Engine Ion Engine Propulsion Light Treads Treads Light Treads Flight Unit Flight Unit Utility Large Storage Unit Device Seismic Detector Storage Large Storage Unit Processor Improved Terrain Scan Processor Weapon EM Pulse Gun Energy Gun EM Pulse Gun Ballistic Gun Assault Rifle Launcher Grenade Launcher Build | -11 -10 -10 -9 ------- Run | Yrd Mat Min Mat Slots Evolved 2 | . . . 2 Power . | . . . . Propulsion 1 | . . . 1 Utility 1 | . . . 1 Weapon . | . . . . Parts Attached 17 | 6 7 . 4 Power 2 | 1 1 . . Engine 2 | 1 1 . . Core . | . . . . Reactor . | . . . . Propulsion 4 | 2 2 . . Treads 2 | 2 . . . Leg . | . . . . Wheel . | . . . . Hover . | . . . . Flight 2 | . 2 . . Utility 5 | 1 2 . 2 Device 1 | . 1 . . Storage 2 | 1 1 . . Processor 2 | . . . 2 Hackware . | . . . . Protection . | . . . . Artifact . | . . . . Weapon 6 | 2 2 . 2 Energy Gun 2 | 1 . . 1 Energy Cannon . | . . . . Ballistic Gun 2 | 1 1 . . Ballistic Cannon . | . . . . Launcher 2 | . 1 . 1 Special Weapon . | . . . . Impact Weapon . | . . . . Slashing Weapon . | . . . . Piercing Weapon . | . . . . Special Melee Weapon . | . . . . Unidentified Prototypes . | . . . . Parts Lost 12 | . 7 . 5 Power 2 | . 1 . 1 Propulsion 4 | . 2 . 2 Utility 1 | . 1 . . Weapon 5 | . 3 . 2 Highest Loss Streak 5 | . 5 . 5 To Critical Strikes . | . . . . Average Backups 2 | . 3 2 3 Power . | . . . . Propulsion . | . . . . Utility . | . . 1 2 Weapon . | . . 1 1 Tool/Special . | . . . . Unused Backups . | . . . . Power . | . . . . Propulsion . | . . . . Utility . | . . . . Weapon . | . . . . Tool/Special . | . . . . Average Slot Usage (%) 80 | . 85 61 46 Engine 12 | . 13 14 6 Treads 17 | . 19 . . Flight 8 | . 7 28 15 Device 6 | . 7 . . Storage 12 | . 14 9 . Processor 1 | . . . 15 Energy Gun 8 | . 9 . 5 Ballistic Gun 8 | . 9 . . Launcher 3 | . 3 9 3 Peak Build Rating 12 | 6 7 5 12 Average Rating 6 | 5 5 4 8 On Entrance 3 | . 6 5 3 Avg Prop Armor Cover (%) . | . . . . Naked Turns . | . . . . Heaviest Build 30 | 14 30 13 8 Greatest Support 40 | 40 40 8 8 Greatest Overweight (x) 7 | 1 7 1 1 Average Overweight (x) . | . . . . Largest Inventory Capacity 15 | 8 15 8 5 Average Capacity 11 | 7 12 6 5 Most Carried 6 | 1 6 4 4 Average Carried 2 | . 3 2 3 Final Capacity 8 | 8 8 5 5 Final Carried 4 | 1 2 4 3 Class Distribution -------------------- 100% | Mutant Dominant Class ---------------- Mutant | -10/Materials Mutant | -10/Mines Mutant | -9/Materials Resources | -11 -10 -10 -9 ----------- Run | Yrd Mat Min Mat Matter Collected 486 | 233 183 . 70 Remotely . | . . . . Salvage Created 586 | . 473 12 101 Parts 48 | . 38 2 8 Haulers Intercepted . | . . . . Recyclers Shooed . | . . . . Parts Field Recycled . | . . . . Retrieved Matter . | . . . . Parts Self-Destructed . | . . . . Prevented . | . . . . Parts Restored . | . . . . Kills | -11 -10 -10 -9 ------- Run | Yrd Mat Min Mat Combat Hostiles Destroyed 19 | . 12 3 4 Guns 11 | . 10 . 1 AOE 8 | . 2 3 3 Classes Destroyed 6 | . 5 . 1 Worker 2 | . 2 . . Tunneler 1 | . 1 . . Watcher 2 | . 1 . 1 Swarmer 9 | . 3 3 3 Grunt 9 | . 9 . . Sentry 1 | . . . 1 Best Kill Streak 4 | . 4 3 4 Combat Bots Only 3 | . 3 3 3 Max Kills in Single Turn 3 | . 3 1 2 Gunslinging . | . . . . Exploded 2 | . 1 1 2 Melee . | . . . . Uniques/NPCs Destroyed . | . . . . Combat | -11 -10 -10 -9 -------- Run | Yrd Mat Min Mat Hostile Shots Fired 151 | . 98 9 44 Missed 44 | . 28 3 13 Hits 107 | . 70 6 31 Projectile 107 | . 70 6 31 Critical Strikes 1 | . . . 1 Damage Taken 1229 | . 828 42 359 Core 319 | . 161 21 137 Absorbed by Shields . | . . . . Core Remaining (%) 63 | 100 . 27 . Volleys Fired 59 | . 38 5 16 Largest 2 | . 2 1 1 Hottest 60 | . 60 30 50 Shots Fired 84 | . 63 5 16 Gun 75 | . 62 . 13 Cannon . | . . . . Launcher 9 | . 1 5 3 Special . | . . . . Kinetic 37 | . 37 . . Thermal . | . . . . Explosive 9 | . 1 5 3 Electromagnetic 38 | . 25 . 13 Robot Hit Streak 8 | . 8 5 7 Robot Miss Streak 4 | . 4 . 4 Penetration Max . | . . . . Secondary Targets . | . . . . Shots Hit Robots 54 | . 42 4 8 Core Hits 36 | . 24 5 7 Critical Kills . | . . . . Critical Parts Destroyed . | . . . . Critical Strikes 1 | . 1 . . Corrupt 1 | . 1 . . Melee Attacks . | . . . . Impact . | . . . . Slashing . | . . . . Piercing . | . . . . Sneak Attacks . | . . . . Combat Hostiles . | . . . . Follow-up Attacks . | . . . . Damage Inflicted 1495 | . 817 284 394 Guns 709 | . 539 . 170 Cannons . | . . . . Explosions 775 | . 267 284 224 Melee . | . . . . Ramming 11 | . 11 . . Kinetic 297 | . 297 . . Thermal 172 | . 146 . 26 Explosive 603 | . 121 284 198 Electromagnetic 412 | . 242 . 170 Impact . | . . . . Slashing . | . . . . Piercing . | . . . . Highest Corruption . | . . . . Average Corruption . | . . . . Corruption Purged . | . . . . Corruption Blocked . | . . . . Overload Shots . | . . . . Overflow Damage 31 | . 11 20 . Projectiles . | . . . . Explosions 31 | . 11 20 . Melee . | . . . . Knockbacks . | . . . . Impact . | . . . . Kinetic . | . . . . Secondary . | . . . . Self-Inflicted Damage 130 | . 89 . 41 Shots 5 | . 2 . 3 Rammed 2 | . 2 . . Targets Rammed 2 | . 2 . . Kicked . | . . . . Crushed . | . . . . Highest Temperature 120 | . 54 . 120 Average Temperature 32 | . 19 . 58 Received Heat Transfer 390 | . 354 . 36 Siege Activations . | . . . . Martial Activations . | . . . . Shielding Activations . | . . . . Robots Disrupted . | . . . . Combat Hostiles . | . . . . Robots Corrupted . | . . . . Combat Hostiles . | . . . . Parts Fried 2 | . . . 2 Impact Corruptions . | . . . . Robots Melted . | . . . . Combat Hostiles . | . . . . Parts Melted . | . . . . Heat Transferred 100 | . 50 . 50 Parts Sabotaged . | . . . . Parts Stolen . | . . . . Parts Stripped . | . . . . Power Chain Reactions 2 | . 1 . 1 Alert | -11 -10 -10 -9 ------- Run | Yrd Mat Min Mat Maximum Alert Level . | . . . . Low Security (%) 100 | 100 100 100 100 Level 1 . | . . . . Level 2 . | . . . . Level 3 . | . . . . Level 4 . | . . . . Level 5 . | . . . . High Security . | . . . . Max Security . | . . . . Peak Influence 135 | . 135 91 97 Initial 31 | . . 7 31 Average 45 | . 49 74 37 Influence Increases 612 | . 382 84 146 Destroy 0b10 Robot/C 380 | . 240 60 80 Destroy 0b10 Robot/NC 25 | . 20 . 5 Destroy Leader 104 | . 62 10 32 Successful Hack 5 | . 5 . . Destroy Structure 53 | . 10 14 29 Lose Combat Pursuer 45 | . 45 . . Influence Decreases 525 | . 361 24 140 Entered New Map 64 | . . 14 50 Time Decay 341 | . 291 10 40 Lost Part 120 | . 70 . 50 Squads Dispatched 4 | . 4 . . Investigation 2 | . 2 . . Extermination . | . . . . Reinforcement 2 | . 2 . . Assault . | . . . . Garrison . | . . . . Intercept . | . . . . Searches Triggered . | . . . . Construction Impeded . | . . . . Haulers Reinforced . | . . . . Active Scanning Responses . | . . . . Cargo Convoy Interrupts . | . . . . Stealth | -11 -10 -10 -9 --------- Run | Yrd Mat Min Mat Distress Signals 3 | . 2 . 1 Communications Jammed . | . . . . Distress Signals . | . . . . Times Spotted 35 | . 22 2 11 Peak Tracking Total 7 | . 4 2 7 Tactical Retreats 2 | . 2 . . Traps | -11 -10 -10 -9 ------- Run | Yrd Mat Min Mat Traps Triggered 2 | . 2 . . Indirectly . | . . . . Trap Hack Attempts . | . . . . Triggered . | . . . . Disarmed . | . . . . Reprogrammed . | . . . . Reused . | . . . . Traps Extracted . | . . . . Installed . | . . . . Triggered . | . . . . Machines | -11 -10 -10 -9 ---------- Run | Yrd Mat Min Mat Machines Disabled . | . . . . Max in Single Turn . | . . . . Machines Repaired . | . . . . Machines Dismantled . | . . . . Machines Sabotaged . | . . . . Overloaded Fab Kills . | . . . . Hacking | -11 -10 -10 -9 --------- Run | Yrd Mat Min Mat Machines Accessed 2 | . 2 . . Terminals 2 | . 2 . . Fabricators . | . . . . Repair Stations . | . . . . Recycling Units . | . . . . Scanalyzers . | . . . . Garrison Access . | . . . . Total Hacks 3 | . 3 . . Successful 2 | . 2 . . Failed 1 | . 1 . . Catastrophic . | . . . . Database Lockouts . | . . . . Manual . | . . . . Terminals 3 | . 3 . . Fabricators . | . . . . Repair Stations . | . . . . Recycling Units . | . . . . Scanalyzers . | . . . . Garrison Access . | . . . . Terminal Hacks 2 | . 2 . . Robot Analysis 1 | . 1 . . Prototype ID Bank 1 | . 1 . . Fabricator Hacks . | . . . . Repair Station Hacks . | . . . . Recycling Unit Hacks . | . . . . Scanalyzer . | . . . . Garrison Access Hacks . | . . . . Unauthorized Hacks . | . . . . Terminals . | . . . . Fabricators . | . . . . Repair Stations . | . . . . Recycling Units . | . . . . Scanalyzers . | . . . . Garrison Access . | . . . . Data Cores Recovered . | . . . . Used . | . . . . Hacking Detections 1 | . 1 . . Full Trace Events . | . . . . Feedback Events . | . . . . Feedback Blocked . | . . . . Robot Schematics Acquired . | . . . . Robots Built . | . . . . Authchips . | . . . . Time . | . . . . Total Robot Build Rating . | . . . . Part Schematics Acquired . | . . . . Parts Built . | . . . . Authchips . | . . . . Time . | . . . . Total Part Build Rating . | . . . . Part Studies Acquired . | . . . . Parts Repaired . | . . . . Time . | . . . . Parts Recycled . | . . . . Recycled Matter . | . . . . Retrieved Matter . | . . . . Retrieved Components . | . . . . Parts Scanalyzed . | . . . . Part Schematics Acquired . | . . . . Parts Damaged . | . . . . Bothacking | -11 -10 -10 -9 ------------ Run | Yrd Mat Min Mat Used RIF Installer . | . . . . Robots Hacked . | . . . . Non-combat . | . . . . Combat . | . . . . Robot Hacks Applied . | . . . . Relay Couplers Released . | . . . . Fabnet Peak Effective % . | . . . . Robots Rewired . | . . . . Allies Hacked . | . . . . Hacks Repelled . | . . . . Allies | -11 -10 -10 -9 -------- Run | Yrd Mat Min Mat Total Allies . | . . . . Largest Group . | . . . . Highest-Rated Group . | . . . . Highest-Rated Ally . | . . . . Total Orders . | . . . . Ally Attacks . | . . . . Total Damage . | . . . . Kills . | . . . . Allies Corrupted . | . . . . Allies Melted . | . . . . Intel | -11 -10 -10 -9 ------- Run | Yrd Mat Min Mat Active Infowar (turns) 476 | . 476 . . Seismic 476 | . 476 . . Robot Analysis Total 1 | . 1 . . Derelict Logs Recovered . | . . . . Drone Launches . | . . . . Drone Recoveries . | . . . . Exploration | -11 -10 -10 -9 ------------- Run | Yrd Mat Min Mat Turns Passed 1098 | 76 904 24 94 Spaces Moved 715 | 44 517 29 125 Core 50 | 3 1 . 46 Treads 367 | 41 326 . . Legs . | . . . . Wheels . | . . . . Hover . | . . . . Flight 298 | . 190 29 79 Fastest Speed 37 | 50 117 37 37 Average Speed 125 | 153 147 45 44 Slowest Speed 400 | 160 400 117 100 Overloaded Moves . | . . . . Propulsion Burnouts . | . . . . Robots Hopped 1 | . . . 1 Potential Cave-ins . | . . . . Cave-ins Triggered . | . . . . Exploration Rate (%) 25 | 4 69 14 16 Regions Visited 3 Branch Regions 1 Pre-discovered Areas . | . . . . Known Exits Taken . | . . . . Unknown Exits Taken 3 | 1 1 1 . Scrap Searched . | . . . . Spaces Dug . | . . . . Terrain Destroyed 56 | . 8 19 29 Melee . | . . . . Projectile . | . . . . AOE 56 | . 8 19 29 Terrain Rammed . | . . . . Walls Destroyed . | . . . . Machines Disabled . | . . . . Actions | -11 -10 -10 -9 --------- Run | Yrd Mat Min Mat Total 823 | 50 594 35 144 Wait 25 | . 25 . . Move 710 | 43 516 28 123 Hop 1 | . . . 1 Pick Up 5 | 1 4 . . Fast Attach 11 | 6 2 . 3 Attach 6 | . 5 . 1 Detach 3 | . 1 2 . Swap 1 | . 1 . . Drop . | . . . . Fire 59 | . 38 5 16 Melee . | . . . . Ram . | . . . . Kick . | . . . . Crush 2 | . 2 . . Escape Stasis . | . . . . Rewire . | . . . . Trap . | . . . . Miscellaneous . | . . . . Route ------- -11/Scrapyard -10/Materials (discovered 3 exits: [*Mat x2] / [*Min]) -10/Mines -9/Materials History --------- Turn | Location | Event 16 | -11/Scrapyard | Discovered new exit (range 16) 77 | -11/Scrapyard | Entered Materials 306 | -10/Materials | Build established: Mutant 524 | -10/Materials | Discovered new exit (range 9) 643 | -10/Materials | Discovered new exit (range 15) 743 | -10/Materials | Core integrity fell below 50% 778 | -10/Materials | Lost 5 parts (1p2n2w) 970 | -10/Materials | Discovered new exit (range 10) 981 | -10/Materials | Entered Mines 996 | -10/Mines | Met a Derelict bent on vengeance 1001 | -10/Mines | Discovered new exit (range 10) 1005 | -10/Mines | Entered Materials 1005 | -9/Materials | Evolved 2 slots: Propulsion x1, Utility x1 1099 | -9/Materials | Self-destructed Last Messages --------------- Engine. 01033_ Destroyed Hover Unit. 01043_ Visual Processing Unit fried. 01043_ W-16 Scout destroyed. 01055_ Y-45 Defender misfires. 01055_ Heat Sink fried. 01055_ Y-45 Defender destroyed. 01056_ Ion Engine destroyed. 01059_ Acquired 60 matter. 01065_ Flight Unit destroyed. 01065_ K-01 Serf collects debris. 01065_ Flight Unit destroyed. 01073_ Shock Rifle destroyed. 01074_ S-10 Pest destroyed. 01075_ K-01 Serf collects debris. 01077_ Acquired 10 matter. 01083_ K-01 Serf collects debris. 01095_ S-10 Pest destroyed. 01097_ K-01 Serf collects debris. 01097_ Grenade Launcher destroyed. Map ----- +----------------------------------------------------+ | | | | | | | | | | | | | | | | | | | | | | | | | | | | | | | | | | | | | ???????????????????????################# #####??? | | ??????????????????????# ! # """ #??? | | ??????????????????????# k * # """ """ #?## | | ??????????????????????# = # """ """ #?#/ | | ??????????????????????# # """ = #?#/ | | ???????????????????#### ??# * [= #?# | | ???????????????????# #/#+#########+## +###### | | ?????????? ## @ w Y % | | ?????????? + s Y % | | ?????????????????## # k#### #####+####### | | ?????????????????# ! ! s # #??????????#" | | ?????????????????# """ # #??????????#" | | ?????????????????#! [! """ # #??????????#" | | ?????????????????# [! """ + #??????????## | | ?????????????????# [ #####+#####????????# | | ?????????????????############## #????????# | | ??????????????????????????????# """ #??#+##### | | ??????????????????????????????# """ "T" #??# | | ??????????????????????????????# """ #??# | | ??????????????????????????????# """ [ #??# | | ??????????????????????????????# """ #??# | | ??????????????????????????????# """ / #??# ##### | | ????????????????????????????????? #??# #???# | | ??????????????????????????????????#######??# ##### | | ???????????????????????????????????????????# ## | | ???????????????????????????????????????????# ## | | ???????????????????????????????????????###?# ## | | ??????????????????????????????????????##! ## ## | | ??????????????????????????????????????#! + | | ??????????????????????????????????????#! # | | ??????????????????????????????????????#! # | | ??????????????????????????????????????#! + | +----------------------------------------------------+ Best States ------------- Heat Dissipation 28 Energy Generation 10 Energy Capacity 250 Matter Stores 300 Matter Capacity 300 Sight Range 16 Terrain Scan Density 210 Evasion (%) 62 Recoil Reduction 2 Item Schematics ----------------- None Robot Schematics ------------------ None Fabricated ------------ Nothing Repaired ---------- Nothing Studied --------- None Alien Tech Used ----------------- None Achievements -------------- Let's See Who's Tougher Challenges ------------ None Game ------ Seed LegCryofiberSlayer Manual? 0 Play Time 00:17:22 Cumulative 6.2 hours Start 2026.01.16 @ 16:27:19 End 2026.01.16 @ 17:48:01 Sessions 1 Manual Loads 0 Difficulty Rogue Special Mode None Game No. 11 Rogue 11 Adventurer 0 Explorer 0 Win Type - Total 0 Types 0/0/0/0/0/0/0/0/0/0 Lore% 7 Gallery% 8 Achievement% 14 Wizard Run 0 Options --------- Layout 1 ASCII 0 Keyboard 1 Movement Vi Keybinds 0 Fullscreen 1 Font 24/Smallcaps Map View 50x35 Zoom Use 0% Tactical HUD 1 Map Filters NONE Filters NONE Steam 1 RUN: 10cf5d29-1b44-4137-8a24-417fa0284d3a